bitfinex-derivatives/quotes_ETHF0:USTF0_20241105
["timestamp","ask_amount","ask_price","bid_price","bid_amount"]
[1730787482261,1.89595057,2427.3,2427.2,0.81059297]
[1730787483558,1.48375057,2427.3,2427.2,0.81059297]
[1730787483758,1.48375057,2427.3,2427.2,1.22281297]
[1730787483958,1.89595057,2427.3,2427.2,1.22281297]
[1730787484757,1.89595057,2427.3,2427.2,0.81059297]
[1730787484953,1.89595057,2427.3,2427.2,0.22712059]
[1730787485153,1.89595057,2427.3,2427.1,1.33123]
[1730787487552,1.89595057,2427.3,2427.2,0.41222]
[1730787488356,4.69155057,2427.4,2427.1,0.919]
[1730787488656,4.69155057,2427.4,2427.3,0.4122]
[1730787488858,5.10373057,2427.4,2427.3,0.4122]
[1730787489253,4.69155057,2427.4,2427.3,0.4122]
[1730787489459,5.10373057,2427.4,2427.3,0.4122]
[1730787489664,4.69155057,2427.4,2427.3,0.4122]
[1730787491367,1.48375057,2427.4,2427.3,0.4122]
[1730787492461,1.89593057,2427.4,2427.3,0.4122]
[1730787492963,1.48375057,2427.4,2427.1,0.919]
[1730787493163,1.89596057,2427.3,2427.2,0.41221]
[1730787493363,1.48375057,2427.3,2427.2,0.41221]
[1730787494069,0.41222,2427.2,2427.1,1.33123]
[1730787494367,1.89596057,2427.3,2427.2,0.41222]
[1730787494664,0.41222,2427.2,2427.1,1.33122]
[1730787496370,1.89596057,2427.3,2427.2,0.41222]
[1730787496569,1.48375057,2427.3,2427.2,0.41222]
[1730787497179,1.89595057,2427.3,2427.2,0.41222]
[1730787498181,1.48375057,2427.3,2427.2,0.41222]
[1730787498478,1.89595057,2427.3,2427.2,0.41222]
[1730787498684,1.48375057,2427.3,2427.1,0.919]
[1730787498885,1.89596057,2427.3,2427.2,0.41222]
[1730787499586,1.48375057,2427.3,2427.2,0.41222]
[1730787500087,1.89595057,2427.3,2427.2,0.41222]
[1730787501889,1.48375057,2427.3,2427.2,0.41222]
[1730787502190,3.2078,2427.4,2427.3,0.4122]
[1730787502497,3.2078,2427.4,2427.3,0.8686]
[1730787502881,4.51198,2427.5,2427.3,0.4564]
[1730787503181,4.51198,2427.5,2427.4,0.41218]
[1730787503382,4.51198,2427.5,2427.4,0.85098]
[1730787503785,3.2078,2427.5,2427.4,4.97018]
[1730787503988,3.77700062,2427.7,2427.4,10.05858378]
[1730787504277,3.07090062,2427.7,2427.6,1.89590057]
[1730787504486,3.07090062,2427.7,2427.6,3.63598408]
[1730787504683,5.40101424,2428.1,2427.6,7.34277026]
[1730787504877,5.40101424,2428.1,2427.5,0.4429]
[1730787504878,5.40101424,2428.1,2427.7,11.41380026]
[1730787505090,5.40101424,2428.1,2427.7,7.29460026]
[1730787505297,5.40101424,2428.1,2427.7,11.41380026]
[1730787505791,2.56517276,2427.8,2427.7,12.57742726]
[1730787505992,5.40101424,2428.1,2427.9,0.4121]
[1730787506291,5.40101424,2428.1,2427.9,5.33908198]
[1730787506885,1.48375057,2428.3,2427.9,5.33908198]
[1730787507089,1.48375057,2428.3,2428.2,0.41205]
[1730787510987,1.89579057,2428.3,2427.9,3.6434]
[1730787511190,0.8845,2428.5,2427.9,3.6434]
[1730787511191,1.94505057,2428.2,2427.9,3.6434]
[1730787511390,1.94505057,2428.2,2428.1,0.41207]
[1730787512888,1.94505057,2428.2,2427.9,3.6434]
[1730787513091,0.41208,2428.0,2427.9,4.05549]
[1730787513388,1.48375057,2428.0,2427.6,3.3038]
[1730787513591,1.48375057,2428.0,2427.9,0.4121]
[1730787514696,0.4121,2427.9,2427.8,0.41211]
[1730787515900,1.48375057,2428.0,2427.8,0.41211]
[1730787516100,1.48375057,2428.0,2427.8,0.4121]
[1730787516297,1.48375057,2428.0,2427.6,3.6401]
[1730787516500,1.89584057,2428.0,2427.8,0.4121]
[1730787517087,0.4611,2428.1,2427.6,3.6401]
[1730787517088,1.48375057,2427.9,2427.6,3.6401]
[1730787517292,1.89586057,2427.9,2427.8,0.41212]
[1730787517496,1.48375057,2427.9,2427.8,0.41212]
[1730787518099,1.89585057,2427.9,2427.8,0.41212]
[1730787519293,1.48375057,2427.9,2427.8,0.41212]
[1730787520001,1.89585057,2427.9,2427.8,0.41212]
[1730787520403,1.48375057,2427.9,2427.8,0.41212]
[1730787520900,5.60295057,2427.9,2427.3,0.096]
[1730787521098,1.89593057,2427.4,2427.3,0.096]
[1730787521397,1.89593057,2427.4,2427.2,0.41221]
[1730787521596,0.464,2427.3,2427.2,0.41221]
[1730787522804,1.94775057,2427.3,2427.2,0.41221]
[1730787523195,1.94775057,2427.3,2427.0,1.07657136]
[1730787523392,1.94775057,2427.3,2427.1,0.41222]
[1730787523603,0.41222,2427.2,2427.1,0.41222]
[1730787524104,0.41223,2427.2,2427.0,1.48882136]
[1730787524304,0.4671,2427.1,2427.0,1.48882136]
[1730787525506,1.95085057,2427.1,2427.0,1.48882136]
[1730787527107,1.95085057,2427.1,2427.0,0.41225]
[1730787527598,0.4671,2427.1,2427.0,0.41225]
[1730787538408,0.87934,2427.1,2427.0,0.41225]
[1730787538609,2.36309057,2427.1,2427.0,0.41225]
[1730787540717,1.95085057,2427.1,2427.0,0.41225]
[1730787540907,2.36309057,2427.1,2427.0,0.41225]
[1730787541307,0.41225,2427.0,2426.9,4.05646]
[1730787541814,0.41225,2427.0,2426.9,0.84866]
[1730787542016,2.36310057,2427.1,2427.0,0.41225]
[1730787544326,1.95085057,2427.1,2426.9,3.2078]
[1730787544617,5.57089057,2427.1,2427.0,0.41225]
[1730787544820,0.41225,2427.0,2426.9,0.41226]
[1730787545016,40.8,2427.0,2426.7,0.4123]
[1730787545220,40.8,2427.0,2426.9,0.41227]
[1730787545423,2.36310057,2427.1,2426.7,3.2078]
[1730787545724,2.36310057,2427.1,2427.0,0.41225]
[1730787545920,0.4671,2427.1,2427.0,0.41225]
[1730787546413,1.95085057,2427.1,2426.7,3.2078]
[1730787546617,1.48375057,2426.8,2426.7,3.6201]
[1730787549024,1.48375057,2426.8,2426.7,0.4123]
[1730787551925,0.4123,2426.7,2426.6,3.2078]
[1730787552127,2.36465057,2426.7,2426.6,3.2078]
[1730787552820,2.36465057,2426.7,2426.5,0.41233]
[1730787553035,0.41232,2426.6,2426.5,0.41233]
[1730787553221,2.36467057,2426.7,2426.6,0.41232]
[1730787553521,0.4686,2426.7,2426.6,0.41232]
[1730787555920,0.8809,2426.7,2426.6,0.41232]
[1730787556320,0.4686,2426.7,2426.6,0.41232]
[1730787558631,0.8809,2426.7,2426.6,0.41232]
[1730787559032,0.4686,2426.7,2426.4,3.2078]
[1730787559223,1.89609057,2426.5,2426.4,3.2078]
[1730787559631,1.48375057,2426.5,2426.0,3.2078]
[1730787559934,1.89613057,2426.3,2426.2,0.41238]
[1730787560227,1.89613057,2426.3,2426.2,1.22090461]
[1730787560437,2.34443057,2426.3,2426.2,0.80852461]
[1730787560635,2.34443057,2426.3,2426.2,0.22652969]
[1730787560928,0.41239,2426.2,2426.1,0.4124]
[1730787561127,1.93205057,2426.3,2426.1,0.80863528]
[1730787561436,2.34443057,2426.3,2426.1,0.4124]
[1730787562132,2.34443057,2426.3,2426.2,0.63901133]
[1730787562434,2.34443057,2426.3,2426.2,0.41239]
[1730787564135,2.34443057,2426.3,2426.2,1.22142392]
[1730787564325,2.34443057,2426.3,2426.2,0.41239]
[1730787565131,1.93205057,2426.3,2426.2,0.41239]
[1730787565336,0.4483,2426.3,2426.2,0.41239]
[1730787565533,1.48375057,2426.6,2426.5,0.41234]
[1730787565723,3.23577057,2426.6,2426.5,0.41234]
[1730787565921,2.82345057,2426.6,2426.5,0.41234]
[1730787566129,3.23577057,2426.6,2426.5,1.22191]
[1730787566434,0.41234,2426.5,2426.4,0.41235]
[1730787566634,1.89609057,2426.5,2426.4,1.22185336]
[1730787567134,1.89609057,2426.5,2426.4,0.63914859]
[1730787567333,1.89609057,2426.5,2426.4,1.22192026]
[1730787567535,1.48375057,2426.5,2426.4,1.22192026]
[1730787568029,2.82345057,2426.6,2426.4,0.80957026]
[1730787568223,1.48375057,2426.5,2426.4,0.41234]
[1730787568426,1.48375057,2426.5,2426.4,1.22188143]
[1730787569927,1.48375057,2426.5,2426.4,0.80954143]
[1730787570135,1.89609057,2426.5,2426.4,0.2268227]
[1730787570439,0.41237,2426.3,2426.2,0.41238]
[1730787570736,1.89612057,2426.3,2426.2,0.639202]
[1730787570935,1.89612057,2426.3,2426.2,1.22190395]
[1730787571138,1.89612057,2426.3,2426.2,0.41238]
[1730787571343,1.89612057,2426.3,2426.2,1.22188578]
[1730787573533,1.89612057,2426.3,2426.2,0.99507457]
[1730787573737,1.89612057,2426.3,2426.2,1.22182087]
[1730787573940,1.48375057,2426.3,2425.9,0.096]
[1730787574141,1.89617057,2426.0,2425.9,0.41243]
[1730787574343,1.89617057,2426.0,2425.9,1.22175057]
[1730787574538,1.89617057,2426.0,2425.9,1.22156045]
[1730787574846,1.48375057,2426.0,2425.9,1.22156045]
[1730787575036,1.48375057,2426.1,2426.0,0.41242]
[1730787575233,1.3252,2426.2,2426.1,0.41241]
[1730787575748,1.3252,2426.2,2426.1,0.63906554]
[1730787575936,1.3252,2426.2,2425.8,3.2078]
[1730787576237,1.89617057,2426.0,2425.9,1.22139484]
[1730787576945,1.48375057,2426.0,2425.9,1.22139484]
[1730787578345,1.48375057,2426.0,2425.9,0.63908356]
[1730787580247,1.48375057,2426.0,2425.9,0.41243]
[1730787581143,1.3252,2426.2,2425.7,3.2078]
[1730787581344,1.7376,2426.2,2426.1,0.41241]
[1730787581544,3.22135057,2426.2,2426.1,0.41241]
[1730787583439,3.2078,2426.4,2425.8,3.6324]
[1730787583741,1.48375057,2426.3,2426.2,0.41237]
[1730787584345,1.89612057,2426.3,2426.2,0.41237]
[1730787584857,0.41239,2426.2,2426.1,0.41239]
[1730787585051,1.48375057,2426.2,2425.9,0.41244]
[1730787585250,1.89615057,2426.2,2426.1,0.41241]
[1730787586848,1.48375057,2426.3,2426.2,0.41239]
[1730787596560,1.48375057,2426.3,2426.2,1.22141834]
[1730787597862,1.48375057,2426.3,2426.2,1.2215116]
[1730787598368,1.48375057,2426.5,2426.4,0.41235]
[1730787598663,1.30811,2426.7,2426.6,0.41232]
[1730787598871,2.79186057,2426.7,2426.6,0.41232]
[1730787600373,3.86330114,2426.7,2426.2,3.2078]
[1730787600563,0.41236,2426.4,2426.3,0.81268585]
[1730787600871,1.89611057,2426.4,2426.3,0.6387366]
[1730787601064,1.89611057,2426.4,2426.3,1.22511707]
[1730787602368,1.89611057,2426.4,2426.3,0.81274707]
[1730787603769,1.48375057,2426.4,2426.3,1.22511707]
[1730787603967,1.48375057,2426.4,2426.3,2.16379208]
[1730787604369,4.2478,2426.9,2426.3,2.16379208]
[1730787604370,4.2478,2426.9,2426.3,9.08082208]
[1730787604576,5.42048,2426.9,2426.7,0.4123]
[1730787604870,5.42048,2426.9,2426.8,0.41229]
[1730787605467,5.0082,2426.9,2426.5,0.4443]
[1730787605668,1.48375057,2426.6,2426.5,0.85664]
[1730787605871,1.48375057,2426.7,2426.6,0.41232]
[1730787606072,1.48375057,2426.7,2426.6,2.16449055]
[1730787607274,1.48375057,2426.7,2426.6,5.37229055]
[1730787608182,1.48375057,2426.7,2426.6,5.37164941]
[1730787609676,1.48375057,2426.9,2426.8,0.41229]
[1730787609966,1.48375057,2426.9,2426.8,1.22532354]
[1730787611778,1.48375057,2426.9,2426.8,1.22513048]
[1730787611981,1.48375057,2426.9,2426.8,1.22469996]
[1730787612485,1.48375057,2426.9,2426.8,0.9984194]
[1730787612679,1.48375057,2426.9,2426.8,0.41229]
[1730787613074,1.48375057,2426.9,2426.8,0.99834529]
[1730787613275,1.48375057,2426.9,2426.8,0.41229]
[1730787613778,1.48375057,2426.9,2426.8,0.99826181]
[1730787614374,1.48375057,2426.9,2426.8,1.22447777]
[1730787615275,1.48375057,2426.9,2426.8,0.99826181]
[1730787615580,1.48375057,2426.9,2426.8,0.41229]
[1730787616483,1.48375057,2426.9,2426.8,1.2241279]
[1730787617274,1.48375057,2426.9,2426.8,0.99800041]
[1730787618778,1.48375057,2427.0,2426.8,4.70651041]
[1730787618982,1.48375057,2427.0,2426.9,1.29547]
[1730787619182,1.48375057,2427.0,2426.9,5.41547]
[1730787619885,0.50821,2427.3,2427.2,0.41222]
[1730787619886,0.096,2427.3,2427.2,0.41222]
[1730787620072,1.48375057,2427.5,2427.4,0.41218]
[1730787625478,8.68210728,2427.6,2427.3,0.8864]
[1730787625677,8.68210728,2427.6,2427.5,0.41217]
[1730787626078,7.174099,2427.6,2427.5,0.41217]
[1730787626674,5.69034843,2427.6,2427.5,0.41217]
[1730787626875,4.31254843,2427.6,2427.5,0.41217]
[1730787627080,4.31254843,2427.6,2427.3,2.37015057]
[1730787627081,2.35035057,2427.8,2427.7,0.41213]
[1730787630585,0.8666,2427.8,2427.7,0.41213]
[1730787630779,0.4575,2427.9,2427.8,0.41212]
[1730787631700,0.4606,2428.0,2427.9,0.4121]
[1730787639694,0.8865,2428.2,2427.9,4.1184]
[1730787639895,1.3175,2428.2,2428.1,0.41207]
[1730787640199,3.2078,2428.4,2428.1,1.48375057]
[1730787640396,4.0801,2428.4,2428.3,0.41203]
[1730787641893,4.0801,2428.4,2428.3,4.53043]
[1730787642402,3.2078,2428.4,2428.3,4.53043]
[1730787642595,0.4522,2428.5,2428.4,0.41202]
[1730787643099,0.4522,2428.5,2428.4,0.84982]
[1730787646692,0.8723,2428.6,2428.5,0.412]
[1730787648404,0.096,2428.9,2428.5,5.60135057]
[1730787648702,0.096,2429.2,2429.1,0.4119]
[1730787649007,1.48375057,2429.3,2429.0,3.2078]
[1730787649303,0.8795,2429.1,2429.0,3.61971]
[1730787649701,0.8795,2429.1,2429.0,7.73651]
[1730787650297,0.8795,2429.1,2429.0,4.52871]
[1730787650604,0.8795,2429.1,2429.0,7.73651]
[1730787650795,0.8795,2429.1,2429.0,3.61971]
[1730787650997,2.36325057,2429.1,2428.6,3.7461]
[1730787651304,0.41191,2429.0,2428.8,0.41193]
[1730787651505,2.36325057,2429.1,2428.6,3.6503]
[1730787651706,2.77515057,2429.1,2428.9,0.41192]
[1730787651904,2.36325057,2429.1,2428.9,0.41192]
[1730787652800,2.77515057,2429.1,2428.9,0.41192]
[1730787653201,2.36325057,2429.1,2428.6,3.6503]
[1730787653407,0.8795,2429.1,2429.0,0.41191]
[1730787654506,0.8795,2429.1,2429.0,1.89566057]
[1730787654709,0.8795,2429.1,2429.0,2.34806057]
[1730787663424,0.8795,2429.1,2429.0,0.86431]
[1730787669026,0.8795,2429.1,2429.0,0.41191]
[1730787678541,0.8795,2429.1,2429.0,1.00236166]
[1730787678741,0.8795,2429.1,2429.0,1.0023673]
[1730787679137,0.8795,2429.1,2429.0,0.41191]
[1730787682443,0.8795,2429.1,2429.0,1.00296477]
[1730787682642,6.48005057,2429.1,2428.7,3.2078]
[1730787682945,2.36325057,2429.1,2428.8,0.41194]
[1730787683139,0.41193,2428.9,2428.8,0.41194]
[1730787683533,0.41193,2428.9,2428.7,3.2078]
[1730787683730,0.4403,2428.8,2428.7,3.61975]
[1730787683933,0.4403,2428.8,2428.7,4.21455915]
[1730787684138,0.4403,2428.8,2428.7,5.69830972]
[1730787684333,0.8795,2429.1,2429.0,0.41191]
[1730787684536,0.8795,2429.1,2429.0,1.23250058]
[1730787685537,0.8795,2429.1,2429.0,2.18446598]
[1730787685737,0.8795,2429.1,2429.0,1.23250058]
[1730787686344,0.8795,2429.1,2429.0,2.18476691]
[1730787686545,0.8795,2429.1,2429.0,0.41191]
[1730787686745,0.8795,2429.1,2429.0,1.23301865]
[1730787687447,0.8795,2429.1,2429.0,2.18551265]
[1730787687838,6.89195057,2429.1,2429.0,0.82110865]
[1730787688038,6.89195057,2429.1,2429.0,0.59517437]
[1730787688449,6.89195057,2429.1,2429.0,0.82125555]
[1730787688643,6.89195057,2429.1,2429.0,0.59517437]
[1730787689044,5.4082,2429.1,2429.0,0.59517437]
[1730787689344,5.4082,2429.1,2428.8,0.41194]
[1730787689345,0.41193,2428.9,2428.8,0.41194]
[1730787689544,0.41193,2428.9,2428.8,2.18673006]
[1730787689737,4.52873,2428.9,2428.8,2.18673006]
[1730787690138,0.41193,2428.9,2428.8,2.18673006]
[1730787690349,5.60055057,2428.9,2428.8,1.77533267]
[1730787690645,5.60055057,2428.9,2428.4,0.41202]
[1730787690646,0.41199,2428.6,2428.4,0.41202]
[1730787690843,2.38955057,2428.5,2428.4,0.41202]
[1730787691043,6.91915057,2428.5,2428.4,1.18026382]
[1730787691348,6.91915057,2428.5,2428.4,0.22632589]
[1730787691954,6.91915057,2428.5,2428.4,0.63834589]
[1730787692247,6.50715057,2428.5,2428.4,0.41202]
[1730787692651,0.41202,2428.4,2428.1,0.441]
[1730787692846,1.89577057,2428.4,2428.2,1.17274919]
[1730787693047,1.89577057,2428.4,2428.3,0.22626105]
[1730787693238,5.60215057,2428.4,2428.3,0.63829105]
[1730787693547,6.01417057,2428.4,2428.3,0.22626105]
[1730787693748,6.03495057,2428.4,2428.3,0.22626105]
[1730787693944,6.44697057,2428.4,2428.2,0.41204]
[1730787694144,2.32857057,2428.4,2428.3,0.63822644]
[1730787694652,6.44697057,2428.4,2428.3,0.22619644]
[1730787694951,0.41204,2428.3,2428.1,0.41205]
[1730787695254,0.41204,2428.3,2428.2,0.41205]
[1730787695749,6.01419057,2428.3,2428.2,0.41205]
[1730787696152,4.1184,2428.3,2428.2,0.41205]
[1730787696350,0.86251,2428.5,2428.3,0.41203]
[1730787696564,0.41202,2428.4,2428.3,0.41203]
[1730787697253,0.86251,2428.5,2428.3,0.41203]
[1730787697547,0.86251,2428.5,2428.4,0.41202]
[1730787697947,4.5681,2428.5,2428.0,4.69155057]
[1730787698153,1.93425057,2428.5,2428.3,0.41203]
[1730787698351,2.34625057,2428.5,2428.1,0.41207]
[1730787698551,2.34625057,2428.5,2428.3,0.41202]
[1730787698949,2.34625057,2428.5,2428.2,0.4499]
[1730787699256,0.4505,2428.5,2428.4,0.41202]
[1730787699551,1.93425057,2428.5,2428.4,0.41202]
[1730787701756,1.48375057,2428.5,2428.4,0.41202]
[1730787702244,1.89575057,2428.5,2428.4,0.41202]
[1730787702444,1.48375057,2428.5,2428.4,0.41202]
[1730787703548,1.89575057,2428.5,2428.4,0.41202]
[1730787703755,1.48375057,2428.5,2428.4,0.41202]
[1730787705347,3.2078,2428.7,2428.6,0.41198]
[1730787705853,7.73736,2428.7,2428.6,0.41198]
[1730787706156,3.61976,2428.7,2428.6,0.41198]
[1730787706846,3.61976,2428.7,2428.3,0.8892]
[1730787706847,0.41198,2428.6,2428.5,0.41198]
[1730787707046,3.61977,2428.7,2428.6,0.41198]
[1730787707247,3.61977,2428.7,2428.3,0.8892]
[1730787707449,3.2078,2428.7,2428.3,0.8892]
[1730787707643,1.89575057,2428.6,2428.4,0.41202]
[1730787707944,1.89575057,2428.6,2428.5,0.412]
[1730787708558,1.48375057,2428.6,2428.5,0.412]
[1730787708856,1.89573057,2428.6,2428.5,0.412]
[1730787710051,1.48375057,2428.6,2428.5,0.412]
[1730787710352,1.89573057,2428.6,2428.5,0.412]
[1730787711047,2.35052057,2428.7,2428.6,0.41198]
[1730787711249,0.41198,2428.6,2428.5,0.41199]
[1730787712956,1.48375057,2428.6,2428.3,0.8892]
[1730787713155,0.412,2428.5,2428.4,0.412]
[1730787713355,1.48375057,2428.6,2428.3,0.8892]
[1730787713554,1.89574057,2428.6,2428.5,0.412]
[1730787715752,0.412,2428.5,2428.4,0.412]
[1730787715958,1.89574057,2428.6,2428.5,0.412]
[1730787717255,0.41199,2428.6,2428.5,0.412]
[1730787717456,1.89574057,2428.6,2428.5,0.412]
[1730787719860,1.48375057,2428.6,2428.3,0.8892]
[1730787720061,1.89574057,2428.6,2428.5,0.412]
[1730787720562,0.412,2428.5,2428.4,0.412]
[1730787720757,1.89574057,2428.6,2428.5,0.412]
[1730787720960,0.41201,2428.5,2428.4,0.41201]
[1730787721363,1.89574057,2428.6,2428.5,0.412]
[1730787722464,1.48375057,2428.6,2428.5,0.412]
[1730787723661,0.86676,2428.7,2428.6,0.41198]
[1730787723965,0.4548,2428.7,2428.6,0.41198]
[1730787724965,0.86676,2428.7,2428.6,0.41198]
[1730787725767,0.4548,2428.7,2428.6,0.41198]
[1730787725969,0.4271,2428.8,2428.3,2.37295057]
[1730787726166,0.4502,2429.0,2428.9,0.41193]
[1730787727261,0.41196,2428.8,2428.7,0.41196]
[1730787727458,1.89571057,2428.8,2428.7,0.81018122]
[1730787727663,6.01331057,2428.8,2428.7,0.41196]
[1730787727863,2.32851057,2428.8,2428.7,0.41196]
[1730787728265,1.91655057,2428.8,2428.7,0.63832904]
[1730787728462,1.91655057,2428.8,2428.7,0.41196]
[1730787728665,0.4369,2429.1,2428.7,4.9210234]
[1730787728862,0.4369,2429.1,2429.0,0.41191]
[1730787729676,0.8488,2429.1,2429.0,0.41191]
[1730787729875,0.4369,2429.1,2429.0,0.41191]
[1730787732867,0.4369,2429.1,2429.0,0.63828039]
[1730787733274,1.93115057,2429.2,2429.0,0.22637039]
[1730787733579,1.93115057,2429.2,2429.1,0.4119]
[1730787733773,1.89562057,2429.3,2429.2,0.41187]
[1730787733977,1.48375057,2429.3,2429.2,0.41187]
[1730787734383,1.89561057,2429.3,2429.2,0.41187]
[1730787734772,1.48375057,2429.3,2429.2,0.41187]
[1730787740983,0.41188,2429.2,2429.1,0.41189]
[1730787741173,1.89563057,2429.2,2429.1,0.41189]
[1730787741373,1.48375057,2429.2,2429.1,0.41189]
[1730787743481,1.48375057,2429.2,2429.0,0.4253]
[1730787743784,1.48375057,2429.2,2428.8,3.6666]
[1730787743976,0.9245,2429.1,2429.0,0.41191]
[1730787744180,0.4535,2429.1,2429.0,0.41191]
[1730787744387,2.36662057,2429.3,2429.0,0.22623033]
[1730787744576,2.40825057,2429.3,2429.2,0.41188]
[1730787746776,2.82011057,2429.3,2429.2,0.41188]
[1730787746983,2.40825057,2429.3,2429.2,0.41188]
[1730787747180,1.48375057,2429.3,2429.2,0.41188]
[1730787750483,0.4392,2429.5,2429.3,0.41186]
[1730787750685,0.4392,2429.5,2429.4,0.88065]
[1730787750989,0.85103,2429.5,2429.4,0.4688]
[1730787751185,0.41185,2429.4,2429.3,0.41185]
[1730787751384,2.36180057,2429.4,2429.3,0.41185]
[1730787751687,1.94995057,2429.4,2429.3,0.41185]
[1730787752189,2.36180057,2429.4,2429.3,0.41185]
[1730787752388,0.41187,2429.3,2429.2,0.41187]
[1730787752582,0.4703,2429.3,2429.2,0.41187]
[1730787761995,1.94995057,2429.4,2429.3,0.41186]
[1730787762187,2.36180057,2429.4,2429.3,0.41186]
[1730787762794,1.94995057,2429.4,2429.3,0.41186]
[1730787765794,2.36180057,2429.4,2429.3,0.41186]
[1730787765995,1.94995057,2429.4,2429.3,0.41186]
[1730787767005,2.36180057,2429.4,2429.3,0.41186]
[1730787767298,1.94995057,2429.4,2429.3,1.22204476]
[1730787768297,2.36180057,2429.4,2429.3,0.41186]
[1730787769402,2.36180057,2429.4,2429.3,1.22245517]
[1730787769603,2.36180057,2429.4,2429.3,0.81059517]
[1730787769804,6.06595057,2429.4,2428.8,0.096]
[1730787769998,1.48375057,2429.1,2428.9,1.74530672]
[1730787770199,0.8853,2429.0,2428.7,3.2078]
[1730787770400,1.48375057,2428.8,2428.5,1.30889]
[1730787770595,0.41198,2428.6,2428.5,1.30889]
[1730787770901,1.48375057,2428.8,2428.5,3.05475892]
[1730787771100,0.41196,2428.7,2428.6,1.74586892]
[1730787771292,1.89571057,2428.7,2428.6,0.81093976]
[1730787771497,6.01331057,2428.7,2428.6,0.81093976]
[1730787772204,6.01331057,2428.7,2428.6,0.81094858]
[1730787773595,0.41198,2428.6,2428.5,0.412]
[1730787773792,1.70508,2428.6,2428.5,1.22263098]
[1730787775504,1.70508,2428.6,2428.5,0.99616297]
[1730787776305,1.2931,2428.6,2428.3,6.32558795]
[1730787776503,1.89577057,2428.4,2428.3,1.08061984]
[1730787776909,1.48375057,2428.4,2428.1,4.06606]
[1730787777106,0.41205,2428.2,2428.1,4.06606]
[1730787777303,0.41205,2428.2,2428.1,4.65327471]
[1730787777509,0.8931,2428.2,2428.1,4.65327471]
[1730787777710,2.37685057,2428.2,2428.1,4.20707471]
[1730787778013,2.78890057,2428.2,2428.1,4.43331386]
[1730787778208,2.78890057,2428.2,2428.1,3.61986]
[1730787778609,2.78890057,2428.2,2427.9,0.4279]
[1730787778610,2.37685057,2428.2,2427.9,0.4279]
[1730787778804,1.89583057,2428.0,2427.8,3.6199]
[1730787779006,1.48375057,2428.0,2427.9,1.22503826]
[1730787779396,1.48375057,2428.0,2427.9,0.9986401]
[1730787779608,1.48375057,2428.0,2427.9,0.4121]
[1730787780001,0.41208,2428.1,2428.0,0.41207]
[1730787780002,1.48375057,2428.1,2428.0,0.41207]
[1730787786112,3.3038,2428.4,2427.9,1.48375057]
[1730787786416,0.41203,2428.3,2428.2,0.41204]
[1730787787013,0.41203,2428.3,2428.1,0.41205]
[1730787787218,1.48375057,2428.2,2428.1,0.41205]
[1730787787418,1.93905057,2428.2,2428.1,0.41205]
[1730787787617,2.35110057,2428.2,2428.1,0.41205]
[1730787787817,0.41207,2428.1,2428.0,0.41207]
[1730787788014,0.84327,2428.1,2428.0,0.41207]
[1730787788416,0.4312,2428.1,2428.0,0.41207]
[1730787792220,0.84328,2428.1,2428.0,0.41208]
[1730787792419,0.4312,2428.1,2428.0,0.41208]
[1730787799119,0.84327,2428.1,2428.0,0.41208]
[1730787799629,0.4312,2428.1,2427.8,3.6552]
[1730787799824,1.89585057,2427.9,2427.8,4.06731]
[1730787800024,1.89585057,2427.9,2427.8,3.61991]
[1730787800729,1.89585057,2427.9,2427.8,3.2078]
[1730787801028,1.89585057,2427.9,2427.8,3.61992]
[1730787801219,1.89585057,2427.9,2427.8,3.2078]
[1730787802030,1.48375057,2427.9,2427.5,0.4502]
[1730787802230,0.41214,2427.7,2427.6,0.41214]
[1730787802530,1.89589057,2427.7,2427.6,0.41214]
[1730787802733,2.34739057,2427.7,2427.6,0.41214]
[1730787804531,1.93525057,2427.7,2427.3,0.4656]
[1730787804734,1.48375057,2427.4,2427.3,1.339]
[1730787806026,0.4122,2427.3,2427.2,3.62]
[1730787806232,0.4374,2427.3,2427.2,3.62002]
[1730787806721,0.8496,2427.3,2427.2,3.62002]
[1730787807126,1.3206,2427.3,2427.2,3.62002]
[1730787807321,1.3206,2427.3,2427.2,0.41222]
[1730787807534,0.9084,2427.3,2427.2,0.41222]
[1730787807733,0.9084,2427.3,2427.1,0.87343]
[1730787807931,1.89597057,2427.2,2427.1,0.87343]
[1730787808230,1.48375057,2427.2,2427.1,0.87343]
[1730787810633,5.60375057,2427.2,2426.9,3.2078]
[1730787810835,1.48375057,2427.0,2426.9,3.62006]
[1730787811234,1.95185057,2427.0,2426.9,3.62006]
[1730787811731,2.36410057,2427.0,2426.9,3.62006]
[1730787811936,1.95185057,2427.0,2426.9,3.62006]
[1730787812933,2.36410057,2427.0,2426.9,3.62006]
[1730787813133,2.36410057,2427.0,2426.9,3.2078]
[1730787814037,0.41228,2426.9,2426.7,0.4334]
[1730787814230,1.48375057,2426.8,2426.7,0.8457]
[1730787814432,0.41232,2426.6,2426.5,0.85243]
[1730787814640,0.41234,2426.5,2426.4,0.86145]
[1730787814844,2.36115057,2426.5,2426.4,0.86145]
[1730787816040,1.48375057,2426.5,2426.4,0.86145]
[1730787816242,1.48375057,2426.5,2426.0,4.22329951]
[1730787816243,3.91150114,2426.5,2426.0,1.70851894]
[1730787816440,1.48375057,2426.1,2425.9,2.15002525]
[1730787816642,3.2078,2426.2,2426.0,0.41241]
[1730787816944,42.28375057,2426.1,2426.0,0.8797]
[1730787817137,40.8,2426.1,2426.0,1.29212]
[1730787817441,1.48375057,2426.2,2426.1,0.41241]
[1730787818444,3.30415057,2426.4,2426.3,0.41237]
[1730787818942,3.30415057,2426.4,2426.0,0.8797]
[1730787819148,1.8204,2426.4,2426.2,0.41238]
[1730787819336,1.48375057,2426.3,2426.2,0.41238]
[1730787823137,1.48375057,2426.4,2426.2,4.1216]
[1730787823446,1.48375057,2426.4,2426.3,1.29687]
[1730787824646,4.305,2427.1,2426.3,8.2139]
[1730787824945,1.95455057,2427.0,2426.4,1.92055057]
[1730787825249,1.48375057,2426.9,2426.8,0.41229]
[1730787828649,1.48375057,2426.9,2426.8,0.87369]
[1730787829739,1.48375057,2426.9,2426.8,4.99449]
[1730787832543,1.48375057,2426.9,2426.6,3.2078]
[1730787832740,0.4694,2427.1,2426.8,0.41228]